fUSD/lending_fUSD_20240722
["ID","MTS","AMOUNT","RATE_DAILY","PERIOD"]
[332887955,1721634425492,1000.0,0.00025,110]
[332887956,1721634425954,1000.0,0.00025,110]
[332887957,1721634426416,1000.0,0.00025,110]
[332887958,1721634426874,1000.0,0.00025,110]
[332887959,1721634427323,1000.0,0.00025,110]
[332887960,1721634429343,1000.0,0.00025,110]
[332887961,1721634429401,1000.0,0.00025,110]
[332887962,1721634429439,1000.0,0.00025,110]
[332887963,1721634429485,1000.0,0.00025,110]
[332887964,1721634429658,1000.0,0.00025,110]
[332887965,1721634430092,1000.0,0.00025,110]
[332887966,1721634430555,1000.0,0.00025,110]
[332887967,1721634431034,1000.0,0.00025,110]
[332887968,1721634431502,1000.0,0.00025,110]
[332887969,1721634431995,1000.0,0.00025,110]
[332887970,1721634432503,1000.0,0.00025,110]
[332887971,1721634433016,1000.0,0.00025,110]
[332887972,1721634433517,1000.0,0.00025,110]
[332887973,1721634433997,1000.0,0.00025,110]
[332887974,1721634434532,1000.0,0.00025,110]
[332887975,1721634435202,1000.0,0.00025,110]
[332887976,1721634435537,1000.0,0.00025,110]
[332887977,1721634436202,1000.0,0.00025,110]
[332887978,1721634436501,1000.0,0.00025,110]
[332887979,1721634436957,1000.0,0.00025,110]
[332887980,1721634437475,1000.0,0.00025,110]
[332887981,1721634437992,1000.0,0.00025,110]
[332887982,1721634438435,1000.0,0.00025,110]
[332887984,1721634438939,1000.0,0.00025,110]
[332887985,1721634441570,1000.0,0.00025,110]
[332887986,1721634441666,1000.0,0.00025,110]
[332887987,1721634441773,1000.0,0.00025,110]
[332887988,1721634441909,1000.0,0.00025,110]
[332887989,1721634442017,1000.0,0.00025,110]
[332887990,1721634442201,1000.0,0.00025,110]
[332887991,1721634442858,1000.0,0.00025,110]
[332887992,1721634443316,1000.0,0.00025,110]
[332887993,1721634443734,1000.0,0.00025,110]
[332887994,1721634445143,1000.0,0.00025,110]
[332887995,1721634445237,1000.0,0.00025,110]
[332887996,1721634445539,1000.0,0.00025,110]
[332887997,1721634446108,1000.0,0.00025,110]
[332887998,1721634446304,6360.41897267,0.00010972,2]
[332887999,1721634446457,1000.0,0.00025,110]
[332888000,1721634446894,1000.0,0.00025,110]
[332888001,1721634447395,1000.0,0.00025,110]
[332888002,1721634447893,1000.0,0.00025,110]
[332888003,1721634448442,1000.0,0.00025,110]
[332888004,1721634448737,1000.0,0.00025,110]
[332888005,1721634449238,1000.0,0.00025,110]
[332888006,1721634449876,1000.0,0.00025,110]
[332888007,1721634450192,1000.0,0.00025,110]
[332888008,1721634450524,1000.0,0.00025,110]
[332888009,1721634451009,1000.0,0.00025,110]
[332888010,1721634453269,1000.0,0.00025,110]
[332888011,1721634453348,1000.0,0.00025,110]
[332888012,1721634453463,1000.0,0.00025,110]
[332888013,1721634453552,1000.0,0.00025,110]
[332888014,1721634453645,1000.0,0.00025,110]
[332888015,1721634454679,1000.0,0.00025,110]
[332888016,1721634454734,1000.0,0.00025,110]
[332888017,1721634455093,1000.0,0.00025,110]
[332888018,1721634455471,1000.0,0.00025,110]
[332888019,1721634456558,1000.0,0.00025,110]
[332888020,1721634457070,1000.0,0.00025,110]
[332888021,1721634457589,1000.0,0.00025,110]
[332888022,1721634458167,1000.0,0.00025,110]
[332888023,1721634458651,1000.0,0.00025,110]
[332888024,1721634459171,1000.0,0.00025,110]
[332888025,1721634459733,1000.0,0.00025,110]
[332888026,1721634460215,1000.0,0.00025,110]
[332888027,1721634466149,1255.6296301,0.00010972,2]
[332888028,1721634472480,430.76338376,0.00025,110]
[332888029,1721634511531,250.0,0.00010959,2]
[332888030,1721634516064,532.8,0.00010787,2]
[332888034,1721634559133,250.0,0.00010733,2]
[332888035,1721634582253,152.55,0.00010733,2]
[332888046,1721634632037,-247.45,0.00011004,2]
[332888047,1721634632047,-326.80050338,0.000111,4]
[332888048,1721634632292,-333.47900005,0.000111,4]
[332888049,1721634632311,-939.72049657,0.000111,4]
[332888050,1721634632321,-1151.74358495,0.00011105,2]
[332888051,1721634632330,-316.21788805,0.00011105,2]
[332888052,1721634632339,-156.63103419,0.00011105,2]
[332888053,1721634632348,-5395.34562064,0.00011105,2]
[332888054,1721634632357,-266.99501043,0.00011105,2]
[332888055,1721634632367,-963.25401562,0.00011105,2]
[332888056,1721634632376,-116.53104924,0.00011105,2]
[332888057,1721634632392,-700.04658553,0.00011105,2]
[332888058,1721634632401,-365.15560541,0.00011105,2]
[332888059,1721634632410,-210.88912029,0.00011105,2]
[332888060,1721634632420,-223.90868877,0.00011105,2]
[332888061,1721634638101,-274.55898514,0.00011105,2]
[332888062,1721634638113,-619.9401,0.00011105,2]
[332888063,1721634638207,-78.17550856,0.00011105,2]
[332888064,1721634638217,-320.25034342,0.00011105,2]
[332888065,1721634638227,-12211.76466433,0.00011105,2]
[332888066,1721634638236,-2098.01974504,0.000112,4]
[332888067,1721634638265,-101.98025496,0.000112,4]
[332888068,1721634638275,-761.69837011,0.00011206,2]
[332888069,1721634638286,-234.04740274,0.00011206,2]
[332888070,1721634638297,-365.89866594,0.00011206,2]
[332888071,1721634638307,-499.99,0.000113,2]
[332888072,1721634638317,-2800.0,0.000113,4]
[332888073,1721634638327,-298.16,0.00011316,2]
[332888074,1721634638337,-281.7,0.00011322,2]
[332888075,1721634638347,-1141.61,0.00011324,2]
[332888076,1721634638358,-500.0,0.000114,4]
[332888077,1721634638368,-500.0,0.000115,4]
[332888078,1721634638378,-150.0,0.00011558,2]
[332888079,1721634638390,-500.0,0.000116,4]
[332888080,1721634638400,-1000.0,0.000117,2]
[332888081,1721634638410,-1104.14162019,0.000117,2]
[332888085,1721634638469,-1824.52037981,0.000117,2]
[332888086,1721634638479,-1000.0,0.000117,2]
[332888087,1721634638489,-153.92287216,0.000117,4]
[332888108,1721634641610,-346.07712784,0.000117,4]
[332888109,1721634641619,-318.87670758,0.00011741,2]
[332888110,1721634641629,-621.28032735,0.000118,2]
[332888111,1721634641649,-492.09818283,0.000118,2]
[332888112,1721634641660,-1203.41407876,0.000118,2]
[332888113,1721634641671,-6746.71144992,0.000118,2]
[332888114,1721634641682,-558.89350208,0.000118,2]
[332888115,1721634641694,-377.60245906,0.000118,2]
[332888116,1721634641704,-15646.0773,0.000118,2]
[332888117,1721634641713,-314.06557764,0.000118,2]
[332888118,1721634641722,-1100.0,0.000118,4]
[332888119,1721634641731,-2906.0857117,0.000118,2]
[332888120,1721634641740,-500.0,0.00011805,2]
[332888121,1721634641750,-1635.50550599,0.00011899,2]
[332888122,1721634641759,-1103.1394155,0.00011899,3]
[332888123,1721634641768,-48817.52403011,0.000119,2]
[332888124,1721634641779,-662.68309162,0.000119,2]
[332888125,1721634641790,-982.24203917,0.000119,2]
[332888128,1721634643064,-599.94606868,0.00011186,2]
[332888129,1721634643073,-933.46934286,0.000119,2]
[332888130,1721634643118,-401444.6230863,0.000119,2]
[332888131,1721634643278,-273.4074,0.000119,2]
[332888132,1721634643289,-1715.41144929,0.000119,2]
[332888133,1721634643301,-6468.60721066,0.000119,2]
[332888134,1721634643311,-1919.72400609,0.000119,2]
[332888135,1721634643383,-21368.37115607,0.000119,2]
[332888152,1721634646226,-3033.07718059,0.000119,2]
[332888157,1721634646502,-2065.6397501,0.000119,2]
[332888158,1721634646519,-6743.7,0.000119,2]
[332888166,1721634963458,339.81,9.137e-05,2]
[332888168,1721635106268,43.26125956,0.00010981,2]
[332888169,1721635106293,206.73874044,0.00010981,2]
[332888171,1721635161810,1000.0,0.00010948,2]
[332888174,1721635250583,500.0,0.00010971,2]
[332888178,1721635510463,322.81,9.075e-05,2]
[332888179,1721635561587,7970.45125956,0.00010932,2]
[332888180,1721635561613,313.08874044,0.00010932,2]
[332888181,1721635579201,568.0,0.00024,60]
[332888182,1721635601970,300.0,0.00025,110]
[332888183,1721635623631,223.01298565,0.00024,60]
[332888184,1721635623808,250.0,0.00010959,2]
[332888185,1721635651060,150.0,0.00010701,2]
[332888186,1721635665688,797.34,0.00010941,2]
[332888189,1721635787159,250.0,0.00010977,2]
[332888190,1721635800606,1000.0,0.00010977,2]
[332888198,1721635832282,-277.96,0.00011026,2]
[332888199,1721635832293,-365.15560541,0.00011075,2]
[332888200,1721635832303,-300.0,0.00011104,2]
[332888201,1721635832313,-300.0,0.00011104,2]
[332888202,1721635832323,-1123.70867498,0.00011105,2]
[332888203,1721635832347,-7217.62012504,0.00011105,2]
[332888204,1721635832359,-342.13318843,0.00011105,2]
[332888205,1721635832368,-1266.87800095,0.00011105,2]
[332888206,1721635832378,-349.14572823,0.00011105,2]
[332888207,1721635832388,-431.9273718,0.00011105,2]
[332888208,1721635832398,-1137.62900031,0.00011105,2]
[332888209,1721635832408,-496.60600711,0.00011206,2]
[332888210,1721635832418,-227.52468246,0.00011206,2]
[332888211,1721635832428,-322.81,0.00011339,2]
[332888212,1721635832438,-206.41818788,0.00011525,2]
[332888213,1721635832448,-437.45337069,0.00011525,2]
[332888214,1721635832458,-437.45337069,0.00011525,2]
[332888215,1721635832467,-318.87670759,0.00011611,2]
[332888216,1721635832477,-513.2471371,0.00011662,2]
[332888217,1721635832487,-118466.43248178,0.00011781,2]
[332888218,1721635832499,-1310.26197292,0.00011781,2]
[332888219,1721635832510,-498.56133196,0.00011781,2]
[332888220,1721635832522,-840.47515607,0.00011781,2]
[332888221,1721635832534,-4546.26905727,0.00011781,2]
[332888222,1721635832543,-499.99,0.00011781,2]
[332888223,1721635832553,-428.22,0.00011781,2]
[332888224,1721635832563,-2805.1497,0.000118,2]
[332888225,1721635832573,-301.50295456,0.000118,2]
[332888226,1721635832583,-1496.93012105,0.000118,2]
[332888259,1721635834478,-1133.16129937,0.000118,2]
[332888260,1721635834488,-1181.42468244,0.000118,2]
[332888261,1721635834630,-3688.48389714,0.000118,2]
[332888262,1721635834640,-432.58763859,0.00011805,2]
[332888263,1721635834651,-67.41236141,0.00011805,2]
[332888264,1721635834661,-23964.74891673,0.00011874,2]
[332888265,1721635834672,-1916.80238943,0.00011874,2]
[332888266,1721635834683,-1506.26770272,0.00011874,2]
[332888267,1721635834694,-706.07482364,0.00011874,2]
[332888268,1721635834841,-10916.93811078,0.00011874,2]
[332888269,1721635834852,-7621.14501888,0.00011874,2]
[332888270,1721635834862,-214.95209125,0.0001189,2]
[332888271,1721635834871,-150.0,0.0001189,2]
[332888272,1721635834880,-272.584251,0.00011899,2]
[332888273,1721635834889,-6324.09996709,0.000119,2]
[332888274,1721635834904,-90738.59610254,0.000119,2]
[332888275,1721635835037,-614.92226377,0.000119,2]
[332888276,1721635835048,-1103.55713475,0.000119,2]
[332888277,1721635835058,-518.40021227,0.000119,2]
[332888278,1721635835070,-4384.90963218,0.000119,2]
[332888279,1721635835146,-14418.30152426,0.000119,2]
[332888280,1721635835157,-6594.65836655,0.000119,2]
[332888281,1721635835169,-1421.18809713,0.000119,2]
[332888282,1721635835180,-750.26546194,0.000119,2]
[332888283,1721635835191,-1266.60175907,0.000119,2]
[332888284,1721635835202,-296.5600783,0.000119,2]
[332888298,1721635838265,-6688.73988323,0.000119,2]
[332888299,1721635838276,-2995.97861347,0.000119,2]
[332888300,1721635838318,-1225.92299222,0.000119,2]
[332888301,1721635838434,-335854.33160099,0.000119,2]
[332888302,1721635838486,-1849.20000006,0.000119,2]
[332888303,1721635838497,-3781.2,0.000119,2]
[332888304,1721635838540,-134773.01490843,0.000119,2]
[332888305,1721635838551,-5629.96734332,0.000119,2]
[332888500,1721635840440,-154.33032649,0.00011897,2]
[332888501,1721635840450,-558.83290187,0.000119,2]
[332888502,1721635840462,-4110.57959604,0.000119,2]
[332889109,1721635846859,-7955.49640001,0.000119,2]
[332889112,1721635846878,-1550.303,0.000119,2]
[332889114,1721635846889,-2751.79250304,0.000119,2]
[332889571,1721635990933,151.072217,0.00025,120]
[332889572,1721635991838,151.072217,0.00025,120]
[332889573,1721635992428,151.072217,0.00025,120]
[332889574,1721635992806,151.072217,0.00025,120]
[332889575,1721635993148,151.072217,0.00025,120]
[332889576,1721635993455,151.072217,0.00025,120]
[332889577,1721635994080,151.072217,0.00025,120]
[332889578,1721635994135,151.072217,0.00025,120]
[332889579,1721635994485,151.072217,0.00025,120]
[332889580,1721635994825,151.072217,0.00025,120]
[332889581,1721635995213,151.072217,0.00025,120]
[332889582,1721635995672,151.072217,0.00025,120]
[332889583,1721635996048,151.072217,0.00025,120]
[332889584,1721635996433,151.072217,0.00025,120]
[332889585,1721635996848,151.072217,0.00025,120]
[332889586,1721636004321,151.072217,0.00025,119]
[332889587,1721636013555,151.072217,0.00025,119]
[332889588,1721636014638,151.072217,0.00025,119]
[332889589,1721636014836,151.072217,0.00025,119]
[332889590,1721636015438,151.072217,0.00025,119]
[332889591,1721636015781,151.072217,0.00025,119]
[332889592,1721636016226,151.072217,0.00025,119]
[332889593,1721636016590,85.93056108,0.00025,119]
[332889594,1721636058287,151.072217,0.00024,60]
[332889595,1721636060783,151.072217,0.00024,60]
[332889596,1721636060845,151.072217,0.00024,60]
[332889597,1721636060913,151.072217,0.00024,60]
[332889598,1721636060995,151.072217,0.00024,60]
[332889599,1721636061090,151.072217,0.00024,60]
[332889600,1721636061937,151.072217,0.00024,60]
[332889601,1721636062336,151.072217,0.00024,60]
[332889602,1721636062718,151.072217,0.00024,60]
[332889603,1721636063105,151.072217,0.00024,60]
[332889604,1721636063490,151.072217,0.00024,60]
[332889605,1721636063987,290.52,9.524e-05,2]
[332889606,1721636064255,151.072217,0.00024,60]
[332889607,1721636064613,151.072217,0.00024,60]
[332889608,1721636065118,151.072217,0.00024,60]
[332889609,1721636068234,151.072217,0.00024,61]
[332889610,1721636068915,151.072217,0.00024,60]
[332889611,1721636069050,151.072217,0.00024,61]
[332889612,1721636069445,151.072217,0.00024,61]
[332889613,1721636069807,151.072217,0.00024,61]
[332889614,1721636070172,151.072217,0.00024,61]
[332889615,1721636072473,151.072217,0.00024,61]
[332889616,1721636072519,151.072217,0.00024,61]
[332889617,1721636072559,151.072217,0.00024,61]
[332889618,1721636072602,151.072217,0.00024,61]
[332889619,1721636072663,151.072217,0.00024,61]
[332889620,1721636072818,151.072217,0.00024,61]
[332889621,1721636073230,151.072217,0.00024,61]
[332889622,1721636073606,151.072217,0.00024,61]
[332889623,1721636074016,151.072217,0.00024,61]
[332889624,1721636077269,151.072217,0.00024,62]
[332889625,1721636077800,151.072217,0.00024,62]
[332889626,1721636078174,151.072217,0.00024,62]
[332889627,1721636078612,151.072217,0.00024,62]
[332889628,1721636078988,151.072217,0.00024,62]
[332889629,1721636079344,151.072217,0.00024,62]
[332889630,1721636079724,151.072217,0.00024,62]
[332889631,1721636080107,151.072217,0.00024,62]
[332889632,1721636080513,151.072217,0.00024,62]
[332889633,1721636080914,151.072217,0.00024,62]
[332889634,1721636081302,151.072217,0.00024,62]
[332889635,1721636081726,151.072217,0.00024,62]
[332889636,1721636082137,151.072217,0.00024,62]
[332889637,1721636084152,151.072217,0.00024,62]
[332889638,1721636084192,151.072217,0.00024,62]
[332889639,1721636086584,151.072217,0.00024,63]
[332889640,1721636087039,151.072217,0.00024,63]
[332889641,1721636087427,151.072217,0.00024,63]
[332889642,1721636087824,151.072217,0.00024,63]
[332889643,1721636088218,151.072217,0.00024,63]
[332889644,1721636088600,151.072217,0.00024,63]
[332889645,1721636089023,151.072217,0.00024,63]
[332889646,1721636089815,151.072217,0.00024,63]
[332889647,1721636089877,151.072217,0.00024,63]
[332889648,1721636090254,151.072217,0.00024,63]
[332889649,1721636090693,151.072217,0.00024,63]
[332889650,1721636091168,151.072217,0.00024,63]
[332889651,1721636091654,151.072217,0.00024,63]
[332889652,1721636091998,151.072217,0.00024,63]
[332889653,1721636092450,151.072217,0.00024,63]
[332889654,1721636101001,151.072217,0.00025,120]
[332889655,1721636101417,151.072217,0.00025,120]
[332889656,1721636101762,151.072217,0.00025,120]
[332889657,1721636102142,151.072217,0.00025,120]
[332889658,1721636102521,151.072217,0.00025,120]
[332889659,1721636102896,151.072217,0.00025,120]
[332889660,1721636103370,151.072217,0.00025,120]
[332889661,1721636103656,151.072217,0.00025,120]
[332889662,1721636104075,151.072217,0.00025,120]
[332889663,1721636104845,151.072217,0.00025,120]
[332889664,1721636105233,151.072217,0.00025,120]
[332889665,1721636105642,151.072217,0.00025,120]
[332889666,1721636107718,151.072217,0.00025,120]
[332889667,1721636107764,151.072217,0.00025,120]
[332889668,1721636119586,151.072217,0.00025,120]
[332889669,1721636152556,250.0,0.00010959,2]
[332889670,1721636228875,157.072217,0.00025,120]
[332889671,1721636229870,157.072217,0.00025,120]
[332889672,1721636230174,157.072217,0.00025,120]
[332889673,1721636230699,157.072217,0.00025,120]
[332889674,1721636231337,157.072217,0.00025,120]
[332889675,1721636231814,157.072217,0.00025,120]
[332889676,1721636232187,157.072217,0.00025,120]
[332889677,1721636232497,157.072217,0.00025,120]
[332889678,1721636233065,157.072217,0.00025,120]
[332889679,1721636233670,157.072217,0.00025,120]
[332889680,1721636254362,157.072217,0.00024,66]
[332889681,1721636255467,157.072217,0.00024,66]
[332889682,1721636255831,157.072217,0.00024,66]
[332889683,1721636256224,157.072217,0.00024,66]
[332889684,1721636256579,157.072217,0.00024,66]
[332889685,1721636256918,157.072217,0.00024,66]
[332889686,1721636257264,157.072217,0.00024,66]
[332889687,1721636257614,157.072217,0.00024,66]
[332889688,1721636258006,157.072217,0.00024,66]
[332889689,1721636258375,157.072217,0.00024,66]
[332889690,1721636263289,157.072217,0.00024,67]
[332889691,1721636263330,157.072217,0.00024,67]
[332889692,1721636263358,157.072217,0.00024,67]
[332889693,1721636263390,157.072217,0.00024,67]
[332889694,1721636263433,157.072217,0.00024,67]
[332889695,1721636263465,157.072217,0.00024,67]
[332889696,1721636263772,157.072217,0.00024,67]
[332889697,1721636264147,157.072217,0.00024,67]
[332889698,1721636264976,157.072217,0.00024,67]
[332889699,1721636265064,157.072217,0.00024,67]
[332889700,1721636267965,157.072217,0.00024,68]
[332889701,1721636268365,157.072217,0.00024,68]
[332889702,1721636268735,157.072217,0.00024,68]
[332889703,1721636269127,157.072217,0.00024,68]
[332889704,1721636269496,157.072217,0.00024,68]
[332889705,1721636269879,157.072217,0.00024,68]
[332889706,1721636270255,157.072217,0.00024,68]
[332889707,1721636270599,157.072217,0.00024,68]
[332889708,1721636270973,157.072217,0.00024,68]
[332889709,1721636271385,157.072217,0.00024,68]
[332889710,1721636275160,157.072217,0.00024,69]
[332889711,1721636275214,157.072217,0.00024,69]
[332889712,1721636275526,157.072217,0.00024,69]
[332889713,1721636275898,157.072217,0.00024,69]
[332889714,1721636276291,157.072217,0.00024,69]
[332889715,1721636276669,157.072217,0.00024,69]
[332889716,1721636277087,157.072217,0.00024,69]
[332889717,1721636277462,157.072217,0.00024,69]
[332889718,1721636277898,157.072217,0.00024,69]
[332889719,1721636278274,157.072217,0.00024,69]
[332889720,1721636306082,157.072217,0.00024,74]
[332889721,1721636306482,157.072217,0.00024,74]
[332889722,1721636306869,157.072217,0.00024,74]
[332889723,1721636307241,157.072217,0.00024,74]
[332889724,1721636307631,157.072217,0.00024,74]
[332889725,1721636308005,157.072217,0.00024,74]
[332889726,1721636310025,157.072217,0.00024,74]
[332889727,1721636310099,157.072217,0.00024,74]
[332889728,1721636310141,157.072217,0.00024,74]
[332889729,1721636310174,157.072217,0.00024,74]
[332889730,1721636315546,157.072217,0.00024,75]
[332889731,1721636315948,157.072217,0.00024,75]
[332889732,1721636316341,157.072217,0.00024,75]
[332889733,1721636316778,157.072217,0.00024,75]
[332889734,1721636317181,157.072217,0.00024,75]
[332889735,1721636317587,157.072217,0.00024,75]
[332889736,1721636317960,157.072217,0.00024,75]
[332889737,1721636318400,157.072217,0.00024,75]
[332889738,1721636318824,157.072217,0.00024,75]
[332889739,1721636319303,157.072217,0.00024,75]
[332889740,1721636319711,157.072217,0.00024,75]
[332889741,1721636321796,157.072217,0.00024,75]
[332889742,1721636321834,157.072217,0.00024,75]
[332889743,1721636321880,157.072217,0.00024,75]
[332889744,1721636325253,157.072217,0.00024,76]
[332889745,1721636325672,157.072217,0.00024,76]
[332889746,1721636326186,157.072217,0.00024,76]
[332889747,1721636326480,157.072217,0.00024,76]
[332889748,1721636326895,157.072217,0.00024,76]
[332889749,1721636327321,157.072217,0.00024,76]
[332889750,1721636327703,157.072217,0.00024,76]
[332889751,1721636328518,157.072217,0.00024,76]
[332889752,1721636328575,157.072217,0.00024,76]
[332889753,1721636329021,157.072217,0.00024,76]
[332889754,1721636329442,157.072217,0.00024,76]
[332889755,1721636329607,250.0,0.00010432,2]
[332889756,1721636329842,157.072217,0.00024,76]
[332889757,1721636330284,157.072217,0.00024,76]
[332889758,1721636330721,157.072217,0.00024,76]
[332889759,1721636331173,157.072217,0.00024,76]
[332889760,1721636342128,157.072217,0.00025,120]
[332889761,1721636342942,157.072217,0.00025,120]
[332889762,1721636343367,157.072217,0.00025,120]
[332889763,1721636345284,157.072217,0.00025,120]
[332889764,1721636345347,157.072217,0.00025,120]
[332889765,1721636345425,157.072217,0.00025,120]
[332889766,1721636345493,157.072217,0.00025,120]
[332889767,1721636345574,157.072217,0.00025,120]
[332889768,1721636345699,157.072217,0.00025,120]
[332889769,1721636346102,157.072217,0.00025,120]
[332889770,1721636346460,157.072217,0.00025,120]
[332889771,1721636346855,157.072217,0.00025,120]
[332889772,1721636347181,157.072217,0.00025,120]
[332889773,1721636347553,157.072217,0.00025,120]
[332889774,1721636347930,157.072217,0.00025,120]
[332889775,1721636348306,157.072217,0.00025,120]
[332889776,1721636348666,157.072217,0.00025,120]
[332889777,1721636349058,157.072217,0.00025,120]
[332889778,1721636349492,157.072217,0.00025,120]
[332889779,1721636349890,157.072217,0.00025,120]
[332889780,1721636350220,157.072217,0.00025,120]
[332889781,1721636350623,157.072217,0.00025,120]
[332889782,1721636390165,157.072217,0.00024,63]
[332889783,1721636391824,157.072217,0.00024,63]
[332889784,1721636391866,157.072217,0.00024,63]
[332889785,1721636393588,157.072217,0.00024,63]
[332889786,1721636393627,157.072217,0.00024,63]
[332889787,1721636396259,157.072217,0.00024,64]
[332889788,1721636397196,157.072217,0.00024,64]
[332889789,1721636397248,157.072217,0.00024,64]
[332889790,1721636397673,157.072217,0.00024,64]
[332889791,1721636398175,157.072217,0.00024,64]
[332889792,1721636401298,157.072217,0.00024,65]
[332889793,1721636401790,157.072217,0.00024,65]
[332889794,1721636402245,157.072217,0.00024,65]
[332889795,1721636402720,157.072217,0.00024,65]
[332889796,1721636403212,157.072217,0.00024,65]
[332889797,1721636412206,1000.0,0.00010445,2]
[332889798,1721636420183,177.63,0.00010441,2]
[332889799,1721636422228,157.072217,0.00024,70]
[332889800,1721636422794,157.072217,0.00024,70]
[332889801,1721636423188,157.072217,0.00024,70]
[332889802,1721636423654,157.072217,0.00024,70]
[332889803,1721636424103,157.072217,0.00024,70]
[332889804,1721636429148,157.072217,0.00024,71]
[332889805,1721636429220,157.072217,0.00024,71]
[332889806,1721636429256,157.072217,0.00024,71]
[332889807,1721636429440,157.072217,0.00024,71]
[332889808,1721636429873,157.072217,0.00024,71]
[332889809,1721636433198,157.072217,0.00024,72]
[332889810,1721636433504,157.072217,0.00024,72]
[332889811,1721636434098,157.072217,0.00024,72]
[332889812,1721636434442,157.072217,0.00024,72]
[332889813,1721636434939,157.072217,0.00024,72]
[332889814,1721636445028,157.072217,0.00024,77]
[332889815,1721636445265,157.072217,0.00024,77]
[332889816,1721636446162,157.072217,0.00024,77]
[332889817,1721636446224,157.072217,0.00024,77]
[332889818,1721636446669,157.072217,0.00024,77]
[332889819,1721636449743,157.072217,0.00024,78]
[332889820,1721636450230,157.072217,0.00024,78]
[332889821,1721636450679,157.072217,0.00024,78]
[332889822,1721636452569,157.072217,0.00024,78]
[332889823,1721636452650,157.072217,0.00024,78]
[332889824,1721636454889,157.072217,0.00024,79]
[332889825,1721636455391,157.072217,0.00024,79]
[332889826,1721636455842,157.072217,0.00024,79]
[332889827,1721636456301,157.072217,0.00024,79]
[332889828,1721636456809,157.072217,0.00024,79]
[332889829,1721636461206,157.072217,0.00024,80]
[332889830,1721636461930,157.072217,0.00024,80]
[332889831,1721636462120,157.072217,0.00024,80]
[332889832,1721636463907,157.072217,0.00024,80]
[332889833,1721636463986,157.072217,0.00024,80]
[332889834,1721636469616,151.072217,0.00024,81]
[332889835,1721636470058,151.072217,0.00024,81]
[332889836,1721636470517,151.072217,0.00024,81]
[332889837,1721636470991,151.072217,0.00024,81]
[332889838,1721636471496,151.072217,0.00024,81]
[332889839,1721636475992,151.072217,0.00024,82]
[332889840,1721636476288,151.072217,0.00024,82]